[Event "*** Titled Tuesday Blitz"]
[Site "Chess.com"]
[Date "2021.02.16"]
[Round "4"]
[White "louis198"]
[Black "RD4ever"]
[Result "0-1"]
[WhiteElo "2549"]
[BlackElo "2863"]
[TimeControl "180+1"]
[EndTime "10:44:34 PST"]
[Termination "RD4ever won by resignation"]

1. d4 {[%clk 0:01:19.4]} 1... Nf6 {[%clk 0:02:54]} 2. Bf4 {[%clk 0:01:18.2]}
2... g6 {[%clk 0:02:51.7]} 3. e3 {[%clk 0:01:14.4]} 3... Bg7 {[%clk 0:02:44.4]}
4. h3 {[%clk 0:01:13.6]} 4... O-O {[%clk 0:02:44.2]} 5. Nf3 {[%clk 0:01:08.4]}
5... d6 {[%clk 0:02:44.2]} 6. Bc4 {[%clk 0:00:59.9]} 6... b6 {[%clk 0:02:37.6]}
7. O-O {[%clk 0:00:56.8]} 7... Bb7 {[%clk 0:02:37.9]} 8. a4 {[%clk 0:00:56.4]}
8... a6 {[%clk 0:02:38]} 9. c3 {[%clk 0:00:56.4]} 9... c5 {[%clk 0:02:37.5]} 10.
Nbd2 {[%clk 0:00:56.3]} 10... Nbd7 {[%clk 0:02:33.2]} 11. Qb3 {[%clk 0:00:55.8]}
11... Ra7 {[%clk 0:01:46.5]} 12. Rfd1 {[%clk 0:00:54.3]} 12... Qa8 {[%clk
0:01:43.4]} 13. Ne1 {[%clk 0:00:52.5]} 13... Bd5 {[%clk 0:01:31.4]} 14. Bh2
{[%clk 0:00:45.7]} 14... Rb8 {[%clk 0:01:30.2]} 15. Bxd5 {[%clk 0:00:41]} 15...
Qxd5 {[%clk 0:01:29.5]} 16. Qc2 {[%clk 0:00:38.3]} 16... Rc7 {[%clk 0:01:26.9]}
17. e4 {[%clk 0:00:32.2]} 17... Qb7 {[%clk 0:01:23.4]} 18. e5 {[%clk 0:00:32.3]}
18... Ne8 {[%clk 0:01:19.2]} 19. exd6 {[%clk 0:00:29.7]} 19... exd6 {[%clk
0:01:20.1]} 20. dxc5 {[%clk 0:00:27.5]} 20... Rxc5 {[%clk 0:01:05.2]} 21. Nb3
{[%clk 0:00:26.5]} 21... Rc6 {[%clk 0:00:55.1]} 22. Nf3 {[%clk 0:00:25.6]} 22...
Rbc8 {[%clk 0:00:53.4]} 23. Qe2 {[%clk 0:00:21.2]} 23... Ndf6 {[%clk 0:00:51.1]}
24. Nbd4 {[%clk 0:00:19.6]} 24... R6c7 {[%clk 0:00:49.8]} 25. Re1 {[%clk
0:00:19.6]} 25... h6 {[%clk 0:00:46.7]} 26. Rad1 {[%clk 0:00:19.5]} 26... Rd7
{[%clk 0:00:41.6]} 27. Qc2 {[%clk 0:00:16.3]} 27... d5 {[%clk 0:00:41.6]} 28.
Qb3 {[%clk 0:00:16.1]} 28... Ne4 {[%clk 0:00:40.6]} 29. Ne5 {[%clk 0:00:14.7]}
29... Re7 {[%clk 0:00:40.4]} 30. Ndf3 {[%clk 0:00:14.6]} 30... N8f6 {[%clk
0:00:39.7]} 31. Ng4 {[%clk 0:00:11.5]} 31... Rce8 {[%clk 0:00:33.4]} 32. Nxf6+
{[%clk 0:00:11.2]} 32... Nxf6 {[%clk 0:00:34.3]} 33. Rxe7 {[%clk 0:00:11.4]}
33... Rxe7 {[%clk 0:00:35.2]} 34. Bd6 {[%clk 0:00:09.8]} 34... Rd7 {[%clk
0:00:34.6]} 35. Be5 {[%clk 0:00:10.1]} 35... Ne4 {[%clk 0:00:34.9]} 36. Bxg7
{[%clk 0:00:10.2]} 36... Kxg7 {[%clk 0:00:35.8]} 37. Nd4 {[%clk 0:00:10.3]}
37... Qc7 {[%clk 0:00:35.3]} 38. Qc2 {[%clk 0:00:09]} 38... Qe5 {[%clk 0:00:34]}
39. Qe2 {[%clk 0:00:09]} 39... a5 {[%clk 0:00:33]} 40. Nf3 {[%clk 0:00:09.3]}
40... Qf6 {[%clk 0:00:32.8]} 41. Rd4 {[%clk 0:00:10.2]} 41... Nc5 {[%clk
0:00:32.6]} 42. Qd1 {[%clk 0:00:09.5]} 42... Qe6 {[%clk 0:00:30.2]} 43. Rd2
{[%clk 0:00:09.7]} 43... Ne4 {[%clk 0:00:29.1]} 44. Rd4 {[%clk 0:00:09.5]} 44...
Nc5 {[%clk 0:00:29.4]} 45. Rd2 {[%clk 0:00:09.6]} 45... Rd8 {[%clk 0:00:29]} 46.
Nd4 {[%clk 0:00:09.5]} 46... Qf6 {[%clk 0:00:28.3]} 47. Re2 {[%clk 0:00:10]}
47... Ne4 {[%clk 0:00:28.4]} 48. f3 {[%clk 0:00:09.4]} 48... Ng3 {[%clk
0:00:28.2]} 49. Re3 {[%clk 0:00:09.7]} 49... Nh5 {[%clk 0:00:25.9]} 50. Qd3
{[%clk 0:00:08.2]} 50... Nf4 {[%clk 0:00:25.5]} 51. Qd2 {[%clk 0:00:08.6]} 51...
Qg5 {[%clk 0:00:25.4]} 52. Kh2 {[%clk 0:00:07.8]} 52... Nxg2 {[%clk 0:00:24.4]}
53. Re2 {[%clk 0:00:03.6]} 53... Nf4 {[%clk 0:00:24.6]} 54. Rf2 {[%clk
0:00:02.8]} 54... h5 {[%clk 0:00:22.6]} 55. Ne2 {[%clk 0:00:02.8]} 55... Nxh3
{[%clk 0:00:18.5]} 56. Qxg5 {[%clk 0:00:02.8]} 56... Nxg5 {[%clk 0:00:17.3]} 57.
Kg3 {[%clk 0:00:03.7]} 57... Ne6 {[%clk 0:00:14.9]} 58. Nd4 {[%clk 0:00:04.6]}
58... Nxd4 {[%clk 0:00:13.7]} 59. cxd4 {[%clk 0:00:05.5]} 59... Rc8 {[%clk
0:00:14.5]} 60. b3 {[%clk 0:00:06.1]} 60... Rc3 {[%clk 0:00:11.2]} 61. Rb2
{[%clk 0:00:07]} 61... Rd3 {[%clk 0:00:11.4]} 62. Kf4 {[%clk 0:00:07.9]} 62...
Rxd4+ {[%clk 0:00:11.8]} 63. Ke5 {[%clk 0:00:08.8]} 63... Rd3 {[%clk 0:00:12.5]}
64. f4 {[%clk 0:00:07.4]} 64... h4 {[%clk 0:00:12.7]} 65. b4 {[%clk 0:00:07.7]}
65... axb4 {[%clk 0:00:11.9]} 66. Rxb4 {[%clk 0:00:08.6]} 66... h3 {[%clk
0:00:12.6]} 67. Rxb6 {[%clk 0:00:08.8]} 67... h2 {[%clk 0:00:11.9]} 68. Rb1
{[%clk 0:00:09.3]} 68... Ra3 {[%clk 0:00:11.5]} 69. Rh1 {[%clk 0:00:09.8]} 69...
Rxa4 {[%clk 0:00:10]} 70. Rxh2 {[%clk 0:00:10.2]} 70... Re4+ {[%clk 0:00:10.7]}
71. Kxd5 {[%clk 0:00:10.6]} 71... Rxf4 {[%clk 0:00:11.6]} 72. Ke5 {[%clk
0:00:10.7]} 72... Rf5+ {[%clk 0:00:12.5]} 73. Ke4 {[%clk 0:00:11.1]} 73... Kf6
{[%clk 0:00:13.4]} 74. Rg2 {[%clk 0:00:11.7]} 74... g5 {[%clk 0:00:13.1]} 75.
Ra2 {[%clk 0:00:10.9]} 75... Rf4+ {[%clk 0:00:11.7]} 76. Ke3 {[%clk 0:00:11.1]}
76... Kf5 {[%clk 0:00:12.1]} 77. Rg2 {[%clk 0:00:09.8]} 77... f6 {[%clk
0:00:10.5]} 78. Ra2 {[%clk 0:00:09.3]} 78... Kg4 {[%clk 0:00:10.7]} 79. Rg2+
{[%clk 0:00:08.4]} 79... Kh3 {[%clk 0:00:11.1]} 80. Ra2 {[%clk 0:00:08.5]} 80...
Rb4 {[%clk 0:00:10.3]} 81. Ra1 {[%clk 0:00:09.4]} 81... g4 {[%clk 0:00:10]} 82.
Ra8 {[%clk 0:00:07.6]} 82... Kg3 {[%clk 0:00:09.7]} 83. Rf8 {[%clk 0:00:06.6]}
83... Rb6 {[%clk 0:00:09.8]} 84. Ke4 {[%clk 0:00:06.4]} 84... Kf2 {[%clk
0:00:08.1]} 85. Kf4 {[%clk 0:00:06.1]} 85... g3 {[%clk 0:00:08.6]} 86. Ra8
{[%clk 0:00:06.5]} 86... Rb4+ {[%clk 0:00:08.3]} 87. Kf5 {[%clk 0:00:07]} 87...
g2 {[%clk 0:00:09.2]} 88. Ra2+ {[%clk 0:00:07.9]} 88... Kg1 {[%clk 0:00:07.9]}
89. Kxf6 {[%clk 0:00:07.6]} 89... Kh1 {[%clk 0:00:07.6]} 0-1

[Event "*** Titled Tuesday Blitz"]
[Site "Chess.com"]
[Date "2021.02.16"]
[Round "5"]
[White "biostatistician"]
[Black "drragnar1"]
[Result "0-1"]
[WhiteElo "2600"]
[BlackElo "2424"]
[TimeControl "180+1"]
[EndTime "10:52:03 PST"]
[Termination "drragnar1 won by resignation"]

1. d4 {[%clk 0:02:59]} 1... Nf6 {[%clk 0:02:58.3]} 2. Nf3 {[%clk 0:02:59.9]}
2... c5 {[%clk 0:02:58.4]} 3. d5 {[%clk 0:02:59.9]} 3... d6 {[%clk 0:02:58.5]}
4. c4 {[%clk 0:03:00.2]} 4... e5 {[%clk 0:02:58.4]} 5. Nc3 {[%clk 0:03:00.1]}
5... Be7 {[%clk 0:02:58.8]} 6. h3 {[%clk 0:02:58.4]} 6... O-O {[%clk 0:02:58.7]}
7. e4 {[%clk 0:02:58.9]} 7... Ne8 {[%clk 0:02:59]} 8. Bd3 {[%clk 0:02:58.9]}
8... g6 {[%clk 0:02:56.7]} 9. g4 {[%clk 0:02:58.5]} 9... Ng7 {[%clk 0:02:56.1]}
10. Bh6 {[%clk 0:02:58.2]} 10... Nd7 {[%clk 0:02:55.7]} 11. Qd2 {[%clk
0:02:57.2]} 11... Nf6 {[%clk 0:02:51.8]} 12. Nh2 {[%clk 0:02:52.2]} 12... Kh8
{[%clk 0:02:51.4]} 13. Nf1 {[%clk 0:02:52.3]} 13... Ng8 {[%clk 0:02:51.4]} 14.
Ng3 {[%clk 0:02:46.9]} 14... Nxh6 {[%clk 0:02:49.1]} 15. Qxh6 {[%clk 0:02:45.4]}
15... Bg5 {[%clk 0:02:48.1]} 0-1

[Event "*** Titled Tuesday Blitz"]
[Site "Chess.com"]
[Date "2021.02.16"]
[Round "5"]
[White "wnstop"]
[Black "hypert"]
[Result "1/2-1/2"]
[WhiteElo "2700"]
[BlackElo "2512"]
[TimeControl "180+1"]
[EndTime "10:52:56 PST"]
[Termination "Game drawn by repetition"]

1. e4 {[%clk 0:03:00.9]} 1... c5 {[%clk 0:02:59.2]} 2. Nf3 {[%clk 0:03:00.1]}
2... e6 {[%clk 0:02:59.8]} 3. g3 {[%clk 0:02:57.7]} 3... d5 {[%clk 0:02:59.2]}
4. exd5 {[%clk 0:02:55.7]} 4... exd5 {[%clk 0:03:00.1]} 5. d4 {[%clk 0:02:56.2]}
5... cxd4 {[%clk 0:02:57.6]} 6. Nxd4 {[%clk 0:02:54.6]} 6... Nf6 {[%clk
0:02:58]} 7. Bg2 {[%clk 0:02:53.3]} 7... Bc5 {[%clk 0:02:56.4]} 8. Qe2+ {[%clk
0:02:47.7]} 8... Be7 {[%clk 0:02:55.2]} 9. O-O {[%clk 0:02:43.1]} 9... O-O
{[%clk 0:02:55]} 10. Nc3 {[%clk 0:02:41.8]} 10... Nc6 {[%clk 0:02:54]} 11. Qd3
{[%clk 0:02:23.5]} 11... Ne5 {[%clk 0:02:44.8]} 12. Qe2 {[%clk 0:01:59.2]} 12...
Nc6 {[%clk 0:02:44.1]} 13. Qd3 {[%clk 0:01:53]} 13... Ne5 {[%clk 0:02:41.4]} 14.
Qe2 {[%clk 0:01:46]} 14... Nc6 {[%clk 0:02:41.8]} 1/2-1/2

[Event "*** Titled Tuesday Blitz"]
[Site "Chess.com"]
[Date "2021.02.16"]
[Round "5"]
[White "TeukkaSalama"]
[Black "Maddie"]
[Result "1-0"]
[WhiteElo "2385"]
[BlackElo "2051"]
[TimeControl "180+1"]
[EndTime "10:53:57 PST"]
[Termination "TeukkaSalama won by resignation"]

1. d4 {[%clk 0:03:00.9]} 1... d5 {[%clk 0:02:59.6]} 2. Bf4 {[%clk 0:03:01.5]}
2... Nf6 {[%clk 0:02:59.2]} 3. e3 {[%clk 0:03:02]} 3... Bf5 {[%clk 0:02:59]} 4.
c4 {[%clk 0:03:00.6]} 4... e6 {[%clk 0:02:57.2]} 5. Nc3 {[%clk 0:03:00.6]} 5...
c6 {[%clk 0:02:56.6]} 6. Nf3 {[%clk 0:03:00.7]} 6... Be7 {[%clk 0:02:54.9]} 7.
Qb3 {[%clk 0:03:00.7]} 7... Qb6 {[%clk 0:02:48.1]} 8. c5 {[%clk 0:03:01.1]} 8...
Qxb3 {[%clk 0:02:37.7]} 9. axb3 {[%clk 0:03:02]} 9... Nbd7 {[%clk 0:02:35.9]}
10. b4 {[%clk 0:03:02]} 10... Ne4 {[%clk 0:02:34.9]} 11. b5 {[%clk 0:02:57.6]}
11... O-O {[%clk 0:02:29.7]} 12. bxc6 {[%clk 0:02:51.3]} 12... bxc6 {[%clk
0:02:28]} 13. Ba6 {[%clk 0:02:51.8]} 13... Nb8 {[%clk 0:02:14.9]} 14. Bb7 {[%clk
0:02:50.4]} 14... Nd7 {[%clk 0:02:11.2]} 15. Bxc6 {[%clk 0:02:46.7]} 15... Rad8
{[%clk 0:02:07.1]} 16. Rxa7 {[%clk 0:02:44.6]} 16... Nxc3 {[%clk 0:02:04.1]} 17.
bxc3 {[%clk 0:02:43.8]} 17... Nb8 {[%clk 0:02:01]} 18. Bb5 {[%clk 0:02:30.7]}
18... Bf6 {[%clk 0:01:55.3]} 19. O-O {[%clk 0:02:30.5]} 19... Be4 {[%clk
0:01:52.2]} 20. Rfa1 {[%clk 0:02:23.9]} 20... h6 {[%clk 0:01:47.8]} 21. Rb7
{[%clk 0:02:19.9]} 21... g5 {[%clk 0:01:42.6]} 22. Bg3 {[%clk 0:02:18]} 22...
Bg6 {[%clk 0:01:40.9]} 23. Bd6 {[%clk 0:02:15.8]} 1-0

[Event "*** Titled Tuesday Blitz"]
[Site "Chess.com"]
[Date "2021.02.16"]
[Round "5"]
[White "Nachsueb"]
[Black "bazar-wokzal"]
[Result "0-1"]
[WhiteElo "2173"]
[BlackElo "2559"]
[TimeControl "180+1"]
[EndTime "10:54:04 PST"]
[Termination "bazar-wokzal won by resignation"]

1. d4 {[%clk 0:03:00.9]} 1... Nf6 {[%clk 0:02:59.5]} 2. c4 {[%clk 0:03:01.4]}
2... Nc6 {[%clk 0:02:58.7]} 3. Nf3 {[%clk 0:03:00.2]} 3... e6 {[%clk 0:02:58.6]}
4. a3 {[%clk 0:03:00.8]} 4... g6 {[%clk 0:02:58.1]} 5. Nc3 {[%clk 0:03:00.6]}
5... Bg7 {[%clk 0:02:57.8]} 6. e4 {[%clk 0:03:01.2]} 6... d5 {[%clk 0:02:58.3]}
7. e5 {[%clk 0:02:55.1]} 7... Ne4 {[%clk 0:02:58]} 8. cxd5 {[%clk 0:02:52.7]}
8... exd5 {[%clk 0:02:57.6]} 9. Bd3 {[%clk 0:02:43.8]} 9... Bf5 {[%clk
0:02:57.3]} 10. O-O {[%clk 0:02:35.8]} 10... O-O {[%clk 0:02:55.2]} 11. Bxe4
{[%clk 0:02:35.5]} 11... dxe4 {[%clk 0:02:54.9]} 12. Ng5 {[%clk 0:02:32.2]}
12... Qxd4 {[%clk 0:02:53.2]} 13. e6 {[%clk 0:02:19.2]} 13... fxe6 {[%clk
0:02:44.2]} 14. Qxd4 {[%clk 0:02:14.9]} 14... Nxd4 {[%clk 0:02:44.1]} 15. Ngxe4
{[%clk 0:02:13.7]} 15... Nb3 {[%clk 0:02:40.6]} 16. Rb1 {[%clk 0:02:11.1]} 16...
Bxc3 {[%clk 0:02:37.1]} 17. bxc3 {[%clk 0:02:04.3]} 17... Nxc1 {[%clk
0:02:36.8]} 18. Rfxc1 {[%clk 0:01:59.4]} 18... Bxe4 {[%clk 0:02:36.5]} 19. Rb4
{[%clk 0:02:00]} 19... Bc6 {[%clk 0:02:35.6]} 20. h4 {[%clk 0:01:57.7]} 20...
Rad8 {[%clk 0:02:34.4]} 21. h5 {[%clk 0:01:57.5]} 21... Rd2 {[%clk 0:02:30.6]}
22. f3 {[%clk 0:01:52.6]} 22... gxh5 {[%clk 0:02:29.3]} 23. Re1 {[%clk
0:01:49.7]} 23... Rf6 {[%clk 0:02:24]} 24. Rh4 {[%clk 0:01:46.8]} 24... Rg6
{[%clk 0:02:23]} 0-1

[Event "*** Titled Tuesday Blitz"]
[Site "Chess.com"]
[Date "2021.02.16"]
[Round "5"]
[White "KonstantinB_1983"]
[Black "KubaGepard"]
[Result "0-1"]
[WhiteElo "2538"]
[BlackElo "2406"]
[TimeControl "180+1"]
[EndTime "10:54:16 PST"]
[Termination "KubaGepard won by resignation"]

1. d4 {[%clk 0:03:00.9]} 1... d5 {[%clk 0:02:59.6]} 2. c4 {[%clk 0:02:59.2]}
2... dxc4 {[%clk 0:03:00.5]} 3. e4 {[%clk 0:02:57.4]} 3... Nf6 {[%clk
0:02:59.8]} 4. Nc3 {[%clk 0:02:55.3]} 4... e5 {[%clk 0:02:59.5]} 5. d5 {[%clk
0:02:52]} 5... b5 {[%clk 0:02:59.2]} 6. Nxb5 {[%clk 0:02:50]} 6... Nxe4 {[%clk
0:02:59]} 7. Bxc4 {[%clk 0:02:49.1]} 7... Nxf2 {[%clk 0:02:59.2]} 8. Qf3 {[%clk
0:02:31.4]} 8... Nxh1 {[%clk 0:02:41.1]} 9. d6 {[%clk 0:02:27.5]} 9... Qh4+
{[%clk 0:02:34.2]} 10. g3 {[%clk 0:02:24.5]} 10... Qxc4 {[%clk 0:02:33.2]} 11.
Nxc7+ {[%clk 0:02:18.5]} 11... Kd8 {[%clk 0:02:21.1]} 12. Qxa8 {[%clk
0:02:02.4]} 12... Bxd6 {[%clk 0:02:06.7]} 13. Qxh1 {[%clk 0:01:50.8]} 13... Qxc7
{[%clk 0:01:53.1]} 14. Be3 {[%clk 0:01:46.1]} 14... Bb4+ {[%clk 0:01:46.5]} 15.
Kd1 {[%clk 0:01:43.8]} 15... Bg4+ {[%clk 0:01:45]} 16. Ne2 {[%clk 0:01:42.6]}
16... Ke7 {[%clk 0:01:40.3]} 0-1

[Event "*** Titled Tuesday Blitz"]
[Site "Chess.com"]
[Date "2021.02.16"]
[Round "5"]
[White "ChainsOfFantasia"]
[Black "safikiet"]
[Result "1-0"]
[WhiteElo "2483"]
[BlackElo "2310"]
[TimeControl "180+1"]
[EndTime "10:54:36 PST"]
[Termination "ChainsOfFantasia won by checkmate"]

1. d4 {[%clk 0:03:00.9]} 1... d5 {[%clk 0:02:57.7]} 2. Nf3 {[%clk 0:03:00.2]}
2... Nf6 {[%clk 0:02:57]} 3. c4 {[%clk 0:03:01.1]} 3... c6 {[%clk 0:02:56.3]} 4.
Nc3 {[%clk 0:03:01.4]} 4... e6 {[%clk 0:02:56]} 5. e3 {[%clk 0:03:01.1]} 5...
Nbd7 {[%clk 0:02:56.4]} 6. Qc2 {[%clk 0:03:01.4]} 6... Bd6 {[%clk 0:02:49.4]} 7.
Bd3 {[%clk 0:03:01]} 7... dxc4 {[%clk 0:02:48.3]} 8. Bxc4 {[%clk 0:03:01.9]}
8... b5 {[%clk 0:02:47.8]} 9. Be2 {[%clk 0:03:01.2]} 9... Bb7 {[%clk 0:02:45.8]}
10. O-O {[%clk 0:03:01.5]} 10... a6 {[%clk 0:02:39.1]} 11. e4 {[%clk 0:03:00.9]}
11... e5 {[%clk 0:02:38.8]} 12. dxe5 {[%clk 0:03:00.3]} 12... Nxe5 {[%clk
0:02:38.5]} 13. Nd4 {[%clk 0:03:00.5]} 13... b4 {[%clk 0:02:24.4]} 14. Nf5
{[%clk 0:02:57]} 14... bxc3 {[%clk 0:02:16]} 15. Rd1 {[%clk 0:02:56.5]} 15...
O-O {[%clk 0:02:03.5]} 16. Rxd6 {[%clk 0:02:38.9]} 16... Qc7 {[%clk 0:01:55.9]}
17. Qxc3 {[%clk 0:02:34]} 17... Rfe8 {[%clk 0:01:43.7]} 18. Rxf6 {[%clk
0:02:30]} 18... Ng6 {[%clk 0:01:24.8]} 19. Rd6 {[%clk 0:01:47.3]} 19... Rxe4
{[%clk 0:01:19.8]} 20. Qxg7# {[%clk 0:01:45.6]} 1-0

[Event "*** Titled Tuesday Blitz"]
[Site "Chess.com"]
[Date "2021.02.16"]
[Round "5"]
[White "Mikhail_Golubev"]
[Black "Lagmantr"]
[Result "1-0"]
[WhiteElo "2553"]
[BlackElo "2701"]
[TimeControl "180+1"]
[EndTime "10:54:51 PST"]
[Termination "Mikhail_Golubev won by checkmate"]

1. e4 {[%clk 0:02:54]} 1... c5 {[%clk 0:02:59.2]} 2. Nf3 {[%clk 0:02:53.6]} 2...
d6 {[%clk 0:02:59.6]} 3. d4 {[%clk 0:02:54.1]} 3... cxd4 {[%clk 0:03:00.5]} 4.
Nxd4 {[%clk 0:02:54.5]} 4... Nf6 {[%clk 0:03:01.1]} 5. Nc3 {[%clk 0:02:55.1]}
5... a6 {[%clk 0:03:01.8]} 6. Bc4 {[%clk 0:02:55]} 6... e6 {[%clk 0:03:00.6]} 7.
O-O {[%clk 0:02:55.1]} 7... Be7 {[%clk 0:03:00.7]} 8. Bb3 {[%clk 0:02:54.5]}
8... O-O {[%clk 0:03:01]} 9. f4 {[%clk 0:02:54.7]} 9... Nc6 {[%clk 0:03:01.2]}
10. Be3 {[%clk 0:02:53.9]} 10... Bd7 {[%clk 0:03:01.1]} 11. Qf3 {[%clk
0:02:42.1]} 11... Rc8 {[%clk 0:02:59.7]} 12. f5 {[%clk 0:02:28.8]} 12... Ne5
{[%clk 0:02:39.5]} 13. Qe2 {[%clk 0:02:03.1]} 13... exf5 {[%clk 0:02:24.9]} 14.
Nxf5 {[%clk 0:02:02.4]} 14... Bxf5 {[%clk 0:02:22.8]} 15. Rxf5 {[%clk
0:02:02.3]} 15... Rxc3 {[%clk 0:02:16.2]} 16. bxc3 {[%clk 0:02:01.1]} 16... Nxe4
{[%clk 0:02:16.7]} 17. Bd4 {[%clk 0:01:51]} 17... Ng5 {[%clk 0:02:07.8]} 18.
Raf1 {[%clk 0:01:43.8]} 18... g6 {[%clk 0:01:56.5]} 19. Rxe5 {[%clk 0:01:39.1]}
19... dxe5 {[%clk 0:01:49.3]} 20. Qxe5 {[%clk 0:01:38.7]} 20... Bf6 {[%clk
0:01:37]} 21. Rxf6 {[%clk 0:01:37.5]} 21... Re8 {[%clk 0:01:24.1]} 22. Rxg6+
{[%clk 0:01:32.3]} 22... hxg6 {[%clk 0:01:23.2]} 23. Qh8# {[%clk 0:01:30.7]} 1-0

[Event "*** Titled Tuesday Blitz"]
[Site "Chess.com"]
[Date "2021.02.16"]
[Round "5"]
[White "kleopl"]
[Black "jd001"]
[Result "1-0"]
[WhiteElo "2462"]
[BlackElo "2272"]
[TimeControl "180+1"]
[EndTime "10:55:01 PST"]
[Termination "kleopl won by resignation"]

1. c4 {[%clk 0:03:00.9]} 1... e6 {[%clk 0:02:59]} 2. Nc3 {[%clk 0:02:59.8]} 2...
f5 {[%clk 0:02:59.1]} 3. g3 {[%clk 0:02:58.5]} 3... Nf6 {[%clk 0:02:59.1]} 4.
Bg2 {[%clk 0:02:58.8]} 4... Bb4 {[%clk 0:02:58.6]} 5. Qb3 {[%clk 0:02:57]} 5...
c5 {[%clk 0:02:57.5]} 6. a3 {[%clk 0:02:56.8]} 6... Ba5 {[%clk 0:02:55.9]} 7.
Bxb7 {[%clk 0:02:49]} 7... Bxb7 {[%clk 0:02:55.5]} 8. Qxb7 {[%clk 0:02:49.9]}
8... Nc6 {[%clk 0:02:55.7]} 9. Qb3 {[%clk 0:02:48.3]} 9... O-O {[%clk
0:02:52.1]} 10. Nf3 {[%clk 0:02:47.5]} 10... Rb8 {[%clk 0:02:47.2]} 11. Qc2
{[%clk 0:02:46.9]} 11... Nd4 {[%clk 0:02:45.7]} 12. Nxd4 {[%clk 0:02:43.4]}
12... cxd4 {[%clk 0:02:45.4]} 13. Nb5 {[%clk 0:02:43.8]} 13... Qb6 {[%clk
0:02:37.7]} 14. b4 {[%clk 0:02:40.9]} 14... a6 {[%clk 0:02:37.5]} 15. bxa5
{[%clk 0:02:38.8]} 15... Qc5 {[%clk 0:02:34.6]} 16. a4 {[%clk 0:02:35.3]} 16...
axb5 {[%clk 0:02:33.7]} 17. axb5 {[%clk 0:02:33.4]} 17... Rxb5 {[%clk
0:02:33.4]} 18. Ba3 {[%clk 0:02:29.6]} 18... Qc6 {[%clk 0:02:24.9]} 19. O-O
{[%clk 0:02:28.5]} 19... Rc8 {[%clk 0:02:21.4]} 20. Be7 {[%clk 0:02:14.3]} 20...
Qxc4 {[%clk 0:02:18.5]} 21. Qxc4 {[%clk 0:02:13.8]} 21... Rxc4 {[%clk
0:02:17.8]} 22. a6 {[%clk 0:02:13.9]} 22... Rc8 {[%clk 0:02:17]} 23. a7 {[%clk
0:02:07.9]} 23... Ra8 {[%clk 0:02:16.7]} 24. Bd6 {[%clk 0:01:57.7]} 24... Ne4
{[%clk 0:02:04.5]} 25. Bb8 {[%clk 0:01:53.8]} 25... Nxd2 {[%clk 0:02:04.3]} 26.
Rfc1 {[%clk 0:01:52.1]} 26... Nb3 {[%clk 0:01:55.1]} 27. Rc8+ {[%clk 0:01:51.7]}
27... Kf7 {[%clk 0:01:54.4]} 28. Rb1 {[%clk 0:01:48.6]} 28... Rb7 {[%clk
0:01:38.4]} 29. Kg2 {[%clk 0:01:39.3]} 29... h5 {[%clk 0:01:36.5]} 30. h4 {[%clk
0:01:38.4]} 30... g6 {[%clk 0:01:35.1]} 31. Rh8 {[%clk 0:01:36.1]} 31... Kg7
{[%clk 0:01:33.7]} 32. Be5+ {[%clk 0:01:35.1]} 1-0

[Event "*** Titled Tuesday Blitz"]
[Site "Chess.com"]
[Date "2021.02.16"]
[Round "5"]
[White "northridgehawk"]
[Black "Ave_Mariia"]
[Result "0-1"]
[WhiteElo "2335"]
[BlackElo "2484"]
[TimeControl "180+1"]
[EndTime "10:55:05 PST"]
[Termination "Ave_Mariia won by resignation"]

1. e4 {[%clk 0:02:40.8]} 1... c5 {[%clk 0:02:59.8]} 2. Nf3 {[%clk 0:02:34.2]}
2... d6 {[%clk 0:03:00.1]} 3. d4 {[%clk 0:02:33.2]} 3... cxd4 {[%clk 0:03:01]}
4. Nxd4 {[%clk 0:02:33.9]} 4... Nf6 {[%clk 0:03:01.3]} 5. Nc3 {[%clk 0:02:34.3]}
5... g6 {[%clk 0:03:01.6]} 6. Be3 {[%clk 0:02:33]} 6... Bg7 {[%clk 0:03:01.9]}
7. f3 {[%clk 0:02:31.9]} 7... O-O {[%clk 0:03:01.7]} 8. Qd2 {[%clk 0:02:32.8]}
8... Nc6 {[%clk 0:03:02]} 9. O-O-O {[%clk 0:02:32.9]} 9... d5 {[%clk 0:03:01.7]}
10. Qe1 {[%clk 0:02:33.2]} 10... e5 {[%clk 0:03:01.2]} 11. Nxc6 {[%clk
0:02:33.4]} 11... bxc6 {[%clk 0:03:02.1]} 12. exd5 {[%clk 0:02:33.9]} 12... Nxd5
{[%clk 0:03:02.8]} 13. Bc4 {[%clk 0:02:33.7]} 13... Be6 {[%clk 0:03:03.2]} 14.
Ne4 {[%clk 0:02:29.6]} 14... Qc7 {[%clk 0:03:01]} 15. Bc5 {[%clk 0:02:15.1]}
15... Rfd8 {[%clk 0:02:57]} 16. Qh4 {[%clk 0:02:12.2]} 16... h6 {[%clk 0:02:32]}
17. g4 {[%clk 0:02:11.2]} 17... Rd7 {[%clk 0:02:25.1]} 18. g5 {[%clk 0:02:07]}
18... h5 {[%clk 0:02:23.4]} 19. Rd2 {[%clk 0:01:54.5]} 19... Nf4 {[%clk
0:02:20.2]} 20. Bd6 {[%clk 0:01:48]} 20... Rxd6 {[%clk 0:02:16.9]} 21. Nxd6
{[%clk 0:01:47.4]} 21... Bd5 {[%clk 0:02:16.5]} 22. Bxd5 {[%clk 0:01:42.2]}
22... cxd5 {[%clk 0:02:17.4]} 23. Nb5 {[%clk 0:01:40]} 23... Qa5 {[%clk
0:02:14.1]} 24. Na3 {[%clk 0:01:38.3]} 24... Rb8 {[%clk 0:02:07.6]} 25. Rhd1
{[%clk 0:01:35.2]} 25... Qb4 {[%clk 0:02:04.4]} 26. c3 {[%clk 0:01:34.1]} 26...
Nd3+ {[%clk 0:02:01]} 27. Kc2 {[%clk 0:01:33.8]} 27... Qxh4 {[%clk 0:02:01.7]}
28. Rxd3 {[%clk 0:01:31.2]} 28... d4 {[%clk 0:01:47.1]} 29. Nc4 {[%clk
0:01:28.2]} 29... Qxh2+ {[%clk 0:01:45.6]} 30. R1d2 {[%clk 0:01:27.7]} 30... Qf4
{[%clk 0:01:45.8]} 31. Nd6 {[%clk 0:01:25.4]} 31... Qxg5 {[%clk 0:01:41.4]} 32.
Ne4 {[%clk 0:01:25]} 32... Qf5 {[%clk 0:01:40.6]} 0-1

[Event "*** Titled Tuesday Blitz"]
[Site "Chess.com"]
[Date "2021.02.16"]
[Round "5"]
[White "fabianvivasz"]
[Black "MoreChessJulia"]
[Result "1-0"]
[WhiteElo "2363"]
[BlackElo "2138"]
[TimeControl "180+1"]
[EndTime "10:55:11 PST"]
[Termination "fabianvivasz won by resignation"]

1. e4 {[%clk 0:02:59.5]} 1... c5 {[%clk 0:02:36.1]} 2. Nc3 {[%clk 0:02:55.2]}
2... Nc6 {[%clk 0:02:34.9]} 3. Bb5 {[%clk 0:02:50.9]} 3... Nd4 {[%clk
0:02:33.9]} 4. Nf3 {[%clk 0:02:48.5]} 4... Nxb5 {[%clk 0:02:32.6]} 5. Nxb5
{[%clk 0:02:49.4]} 5... a6 {[%clk 0:02:32.8]} 6. Nc3 {[%clk 0:02:49.1]} 6... g6
{[%clk 0:02:33.2]} 7. d4 {[%clk 0:02:48.6]} 7... Bg7 {[%clk 0:02:33.8]} 8. e5
{[%clk 0:02:35]} 8... cxd4 {[%clk 0:02:32.6]} 9. Qxd4 {[%clk 0:02:34.3]} 9...
Qc7 {[%clk 0:02:32.6]} 10. Bf4 {[%clk 0:02:24.8]} 10... e6 {[%clk 0:02:30.8]}
11. Ne4 {[%clk 0:02:07.6]} 11... Ne7 {[%clk 0:02:26]} 12. Nd6+ {[%clk
0:01:52.8]} 12... Kf8 {[%clk 0:02:25.8]} 13. O-O-O {[%clk 0:01:31]} 13... Nf5
{[%clk 0:02:24.4]} 14. Qb4 {[%clk 0:01:26.9]} 14... Nxd6 {[%clk 0:02:20.8]} 15.
Rxd6 {[%clk 0:01:27.3]} 15... Kg8 {[%clk 0:02:19]} 16. Rhd1 {[%clk 0:01:16.5]}
16... Bf8 {[%clk 0:02:18.5]} 17. Qd4 {[%clk 0:00:42.6]} 17... Bxd6 {[%clk
0:02:15.4]} 18. exd6 {[%clk 0:00:42.9]} 18... Qa5 {[%clk 0:02:12.6]} 19. Bh6
{[%clk 0:00:39]} 19... e5 {[%clk 0:02:03.9]} 20. Nxe5 {[%clk 0:00:37.4]} 20...
f6 {[%clk 0:02:02]} 21. Qc4+ {[%clk 0:00:33.8]} 1-0